bitfinex-derivatives/quotes_SOLF0:USTF0_20240911
["timestamp","ask_amount","ask_price","bid_price","bid_amount"]
[1726026520822,1.3801,133.85,133.67,5.9172986]
[1726026520823,10.33,133.8,133.67,5.9172986]
[1726026521030,10.33,133.79,133.73,10.33]
[1726026521333,10.33,133.79,133.6,35.68241668]
[1726026521334,10.33,133.75,133.67,5.9172986]
[1726026521532,10.33,133.75,133.59,3.69651406]
[1726026521533,10.33,133.75,133.61,5.92138695]
[1726026521732,10.33,133.75,133.68,10.33]
[1726026521733,1.4033,133.74,133.68,10.33]
[1726026527034,1.4033,133.74,133.7,10.33]
[1726026527234,10.33,133.78,133.71,10.33]
[1726026527434,11.6541,133.78,133.71,10.33]
[1726026527835,15.34349456,133.78,133.71,10.33]
[1726026528040,15.34349456,133.78,133.73,10.33]
[1726026528041,1.3241,133.78,133.73,10.33]
[1726026537344,1.3394,133.79,133.73,10.33]
[1726026537538,11.6694,133.79,133.73,10.33]
[1726026539547,10.33,133.78,133.73,10.33]
[1726026540246,10.33,133.78,133.69,3.7396]
[1726026540453,10.33,133.76,133.66,3.80606373]
[1726026540641,1.3958,133.77,133.6,5.92295852]
[1726026540643,10.33,133.74,133.6,5.92295852]
[1726026540847,10.33,133.74,133.68,10.33]
[1726026542548,10.33,133.73,133.67,10.33]
[1726026543166,1.3958,133.77,133.67,10.33]
[1726026543351,10.33,133.74,133.68,10.33]
[1726026546557,10.33,133.73,133.67,10.33]
[1726026550960,1.3958,133.77,133.67,10.33]
[1726026551158,10.33,133.76,133.69,10.33]
[1726026554259,1.3958,133.77,133.69,10.33]
[1726026554461,1.3958,133.77,133.7,10.33]
[1726026554662,10.33,133.76,133.7,10.33]
[1726026555367,10.33,133.76,133.71,10.33]
[1726026555565,1.3958,133.77,133.73,10.33]
[1726026556471,11.6694,133.79,133.74,10.33]
[1726026561069,10.33,133.82,133.76,10.33]
[1726026568778,10.33,133.8,133.76,10.33]
[1726026569372,10.33,133.8,133.74,10.33]
[1726026569574,10.33,133.79,133.73,10.33]
[1726026569777,10.33,133.76,133.63,5.9209682]
[1726026569980,10.33,133.76,133.71,10.33]
[1726026570669,10.33,133.77,133.71,10.33]
[1726026571071,4.0884,133.78,133.73,10.33]
[1726026583684,10.33,133.77,133.71,10.33]
[1726026583986,10.33,133.77,133.7,10.33]
[1726026585886,10.33,133.74,133.68,10.33]
[1726026586091,10.33,133.73,133.67,10.33]
[1726026586280,10.33,133.72,133.66,10.33]
[1726026587085,10.33,133.7,133.62,3.7415]
[1726026587289,10.33,133.7,133.64,10.33]
[1726026588194,10.33,133.7,133.65,10.33]
[1726026591593,10.33,133.71,133.65,10.33]
[1726026599097,18.00785232,133.73,133.67,10.33]
[1726026599605,18.00785232,133.73,133.64,10.33]
[1726026599606,10.33,133.7,133.64,10.33]
[1726026600409,10.33,133.7,133.54,5.92544358]
[1726026600410,10.33,133.7,133.62,3.72576902]
[1726026600610,10.33,133.7,133.64,10.33]
[1726026601110,10.33,133.69,133.64,10.33]
[1726026601309,10.33,133.69,133.63,10.33]
[1726026602611,10.33,133.69,133.64,10.33]
[1726026604501,10.33,133.7,133.64,10.33]
[1726026604808,10.33,133.7,133.65,10.33]
[1726026607912,10.33,133.69,133.64,10.33]
[1726026610718,7.67785232,133.73,133.64,10.33]
[1726026611011,10.33,133.7,133.65,10.33]
[1726026616221,10.33,133.67,133.54,5.92665934]
[1726026616422,10.33,133.67,133.61,10.33]
[1726026617119,10.33,133.64,133.57,10.33]
[1726026617524,10.33,133.64,133.49,5.92772798]
[1726026617525,10.33,133.64,133.59,10.33]
[1726026623130,10.33,133.64,133.55,3.7435]
[1726026623327,10.33,133.64,133.58,10.33]
[1726026624830,10.33,133.64,133.56,3.68850617]
[1726026624831,10.33,133.64,133.59,10.33]
[1726026626246,118.34027009,133.71,133.62,10.33]
[1726026626436,10.33,133.68,133.62,10.33]
[1726026626739,10.33,133.67,133.62,10.33]
[1726026627647,10.33,133.67,133.6,10.33]
[1726026629447,10.33,133.66,133.6,10.33]
[1726026630138,10.33,133.66,133.57,3.7431]
[1726026630345,3.9724,133.65,133.58,10.33]
[1726026630740,10.33,133.64,133.58,10.33]
[1726026631344,10.33,133.64,133.57,10.33]
[1726026632345,10.33,133.62,133.43,3.78097716]
[1726026632648,10.33,133.61,133.55,10.33]
[1726026633442,10.33,133.61,133.54,10.33]
[1726026635141,10.33,133.61,133.56,10.33]
[1726026639243,10.33,133.61,133.53,7.56918314]
[1726026639244,10.33,133.61,133.54,10.33]
[1726026639443,10.33,133.59,133.44,7.4935]
[1726026639645,10.33,133.59,133.53,10.33]
[1726026643147,11.6979,133.59,133.53,10.33]
[1726026643346,1.3679,133.59,133.54,10.33]
[1726026646959,1.3679,133.59,133.54,14.0738]
[1726026648248,1.3679,133.59,133.54,10.33]
[1726026649256,11.6446,133.6,133.54,14.0739]
[1726026649562,1.3146,133.6,133.54,10.33]
[1726026649750,1.3146,133.6,133.55,3.7435]
[1726026649954,10.33,133.62,133.56,10.33]
[1726026651559,10.33,133.62,133.55,10.33]
[1726026651859,10.33,133.6,133.55,10.33]
[1726026652861,10.33,133.6,133.53,3.744]
[1726026653065,10.33,133.6,133.53,14.074]
[1726026653359,10.33,133.59,133.53,10.33]
[1726026653551,12.973,133.59,133.52,14.0744]
[1726026654959,12.973,133.59,133.53,10.33]
[1726026655356,12.973,133.59,133.53,14.0742]
[1726026655559,2.643,133.59,133.54,10.33]
[1726026655960,10.33,133.61,133.56,10.33]
[1726026656466,2.6699,133.64,133.56,10.33]
[1726026656467,10.33,133.63,133.56,10.33]
[1726026657661,10.33,133.61,133.54,3.7438]
[1726026657863,10.33,133.61,133.55,10.33]
[1726026659368,2.6699,133.64,133.45,5.93113785]
[1726026659369,10.33,133.58,133.45,5.93113785]
[1726026659568,10.33,133.58,133.52,10.33]
[1726026661076,10.33,133.58,133.53,10.33]
[1726026663876,10.33,133.61,133.55,10.33]
[1726026666066,10.33,133.61,133.54,10.33]
[1726026666269,1.2795,133.6,133.54,10.33]
[1726026668271,1.2795,133.6,133.51,3.8152475]
[1726026668467,1.2795,133.6,133.54,10.33]
[1726026669277,1.2795,133.6,133.55,10.33]
[1726026670281,1.2795,133.6,133.54,14.0738]
[1726026671884,10.33,133.59,133.54,10.33]
[1726026675984,10.33,133.59,133.52,10.33]
[1726026676181,10.33,133.58,133.52,10.33]
[1726026679484,10.33,133.58,133.52,14.0745]
[1726026683192,10.33,133.58,133.52,10.33]
[1726026686093,2.6953,133.59,133.51,7.54675746]
[1726026686094,10.33,133.57,133.51,3.80215746]
[1726026686299,10.33,133.57,133.5,3.745]
[1726026686500,10.33,133.57,133.5,14.075]
[1726026687305,10.33,133.57,133.51,3.70252453]
[1726026688801,10.33,133.57,133.5,10.33]
[1726026688993,6.36111766,133.59,133.5,10.33]
[1726026688994,10.33,133.55,133.5,10.33]
[1726026689200,10.33,133.55,133.42,5.93389188]
[1726026689502,10.33,133.55,133.49,10.33]
[1726026694504,10.33,133.55,133.48,3.7456]
[1726026694810,10.33,133.55,133.49,10.33]
[1726026706716,2.6953,133.59,133.53,10.33]
[1726026706906,13.0253,133.59,133.53,10.33]
[1726026707603,13.0253,133.59,133.51,3.7447]
[1726026707604,10.33,133.57,133.51,3.7447]
[1726026707807,10.33,133.57,133.51,10.33]
[1726026715022,10.33,133.58,133.52,10.33]
[1726026715410,2.6953,133.59,133.51,14.0747]
[1726026715411,10.33,133.57,133.51,14.0747]
[1726026715611,10.33,133.57,133.51,10.33]
[1726026718621,10.33,133.57,133.51,14.0748]
[1726026719415,10.33,133.57,133.5,3.745]
[1726026719618,10.33,133.57,133.52,10.33]
[1726026720417,13.0253,133.59,133.53,10.33]
[1726026721626,13.0253,133.59,133.52,10.33]
[1726026722617,13.0253,133.59,133.52,3.7445]
[1726026722818,2.6953,133.59,133.53,10.33]
[1726026723222,2.6953,133.59,133.53,14.0741]
[1726026723420,2.6953,133.59,133.55,10.33]
[1726026723819,2.6953,133.59,133.56,10.33]
[1726026724223,2.6953,133.59,133.54,3.7438]
[1726026724224,342.36174305,133.67,133.57,10.33]
[1726026724426,10.33,133.64,133.57,10.33]
[1726026724626,14.02268804,133.64,133.57,10.33]
[1726026724833,10.33,133.62,133.57,10.33]
[1726026727934,10.33,133.62,133.54,3.66646688]
[1726026727935,2.8187,133.61,133.56,10.33]
[1726026729330,2.8187,133.61,133.59,10.33]
[1726026729635,10.33,133.65,133.59,10.33]
[1726026729931,13.1487,133.65,133.59,10.33]
[1726026730227,2.8187,133.65,133.6,10.33]
[1726026731232,10.33,133.64,133.51,5.93036125]
[1726026731430,10.33,133.64,133.56,10.33]
[1726026731431,10.33,133.63,133.56,10.33]
[1726026732035,10.33,133.62,133.51,3.71040552]
[1726026732231,10.33,133.62,133.56,10.33]
[1726026737933,3.7059126,133.64,133.57,10.33]
[1726026738134,10.33,133.63,133.57,10.33]
[1726026738445,14.15480713,133.63,133.57,10.33]
[1726026740634,10.33,133.62,133.56,10.33]
[1726026741538,14.10630172,133.63,133.57,10.33]
[1726026742641,10.33,133.63,133.57,10.33]
[1726026744031,10.33,133.63,133.57,14.0731]
[1726026744538,2.8187,133.65,133.58,3.7428]
[1726026744841,2.8187,133.65,133.61,10.33]
[1726026750245,118.36174305,133.67,133.62,10.33]
[1726026752444,128.69174305,133.67,133.61,10.33]
[1726026752649,10.33,133.66,133.61,10.33]
[1726026752847,118.36174305,133.67,133.4,230.71778543]
[1726026752848,118.36174305,133.67,133.58,10.33]
[1726026753046,10.33,133.64,133.58,10.33]
[1726026753544,10.33,133.64,133.56,10.33]
[1726026753545,10.33,133.62,133.56,10.33]
[1726026754341,3.7431,133.57,133.56,10.33]
[1726026760845,11.6624,133.63,133.56,10.33]
[1726026761042,11.6624,133.63,133.58,10.33]
[1726026762242,3.7426,133.59,133.58,10.33]
[1726026762638,3.7426,133.59,133.42,11.2417]
[1726026762639,10.33,133.62,133.48,5.93109614]
[1726026762845,10.33,133.62,133.56,10.33]
[1726026763146,10.33,133.61,133.47,3.6621066]
[1726026763351,10.33,133.61,133.54,10.33]
[1726026763657,10.33,133.59,133.53,10.33]
[1726026763952,3.744,133.54,133.53,10.33]
[1726026771966,10.33,133.58,133.51,10.33]
[1726026772265,11.7451,133.58,133.51,10.33]
[1726026772962,10.33,133.57,133.5,10.33]
[1726026773154,11.7451,133.58,133.51,10.33]
[1726026773663,3.7447,133.52,133.51,10.33]
[1726026781971,3.7447,133.52,133.49,3.71123595]
[1726026781972,10.33,133.55,133.49,10.33]
[1726026782169,1.3163,133.54,133.49,10.33]
[1726026782576,1.4151,133.58,133.51,10.33]
[1726026782876,13.0614,133.58,133.51,10.33]
[1726026783281,3.7449,133.51,133.49,3.83456956]
[1726026783574,3.7449,133.51,133.5,10.33]
[1726026787274,3.7447,133.52,133.5,10.33]
[1726026789471,10.33,133.56,133.5,10.33]
[1726026789678,3.7448,133.51,133.5,10.33]
[1726026790078,1.2956,133.55,133.5,10.33]
[1726026790278,3.7446,133.52,133.5,10.33]
[1726026797485,1.2956,133.55,133.5,10.33]
[1726026797686,1.2956,133.55,133.51,3.7447]
[1726026798386,2.7314,133.58,133.53,3.7442]
[1726026798585,2.7314,133.58,133.52,10.33]
[1726026798983,2.7314,133.58,133.52,14.0744]
[1726026801186,10.33,133.54,133.48,14.12120467]
[1726026801389,10.33,133.54,133.48,10.33]
[1726026801892,10.33,133.54,133.48,14.12682349]
[1726026802394,10.33,133.54,133.48,3.79682349]
[1726026802582,10.33,133.54,133.48,10.33]
[1726026802787,10.33,133.54,133.48,13.992721]
[1726026805692,3.745,133.51,133.48,13.992721]
[1726026806087,3.7451,133.5,133.48,13.992721]
[1726026806596,3.7451,133.5,133.41,5.93468039]
[1726026806988,3.7451,133.5,133.48,10.33]
[1726026807390,11.6115,133.53,133.4,7.4956]
[1726026807593,11.6232,133.52,133.46,10.33]
[1726026807791,11.6232,133.52,133.46,14.16681726]
[1726026807991,3.7457,133.48,133.46,3.83681726]
[1726026808299,13.0303,133.52,133.46,10.33]
[1726026808590,13.0303,133.52,133.46,14.08664943]
[1726026808786,3.7458,133.48,133.46,14.08664943]
[1726026809182,3.7458,133.48,133.46,10.33]
[1726026809590,3.7458,133.48,133.46,14.06042631]
[1726026810197,3.7458,133.48,133.46,10.33]
[1726026810600,10.33,133.51,133.46,10.33]
[1726026810796,10.33,133.51,133.44,13.98371133]
[1726026811094,10.33,133.51,133.44,10.33]
[1726026812097,10.33,133.51,133.45,3.83092682]
[1726026812298,10.33,133.51,133.44,10.33]
[1726026812787,10.33,133.51,133.45,3.7586169]
[1726026812987,10.33,133.51,133.45,14.0886169]
[1726026813195,10.33,133.51,133.45,17.8350169]
[1726026813693,13.0303,133.52,133.45,10.33]
[1726026815099,10.33,133.5,133.44,10.33]
[1726026816485,10.33,133.5,133.44,14.0767]
[1726026817298,10.33,133.51,133.46,14.076]
[1726026817500,13.0303,133.52,133.46,14.076]
[1726026818494,13.0303,133.52,133.43,3.82372011]
[1726026818495,13.0303,133.52,133.45,14.0763]
[1726026820396,2.7003,133.52,133.46,14.0761]
[1726026820693,2.7003,133.52,133.46,3.7461]
[1726026820897,2.7003,133.52,133.46,14.0761]
[1726026825599,2.7003,133.52,133.31,35.77010767]
[1726026825600,10.33,133.47,133.32,7.5003]
[1726026825789,4.1258,133.46,133.4,10.33]
[1726026825990,4.1258,133.46,133.41,14.00834006]
[1726026826189,4.1258,133.46,133.41,10.33]
[1726026826796,3.7468,133.44,133.41,14.02320737]
[1726026827502,3.7468,133.44,133.41,10.33]
[1726026827703,3.7471,133.43,133.41,14.15816014]
[1726026829503,4.1258,133.46,133.41,14.15816014]
[1726026830406,4.1258,133.46,133.41,10.33]
[1726026830704,4.1258,133.46,133.41,14.07606387]
[1726026832998,4.1258,133.46,133.41,10.33]
[1726026833197,4.1258,133.46,133.41,14.08131204]
[1726026836394,4.1258,133.46,133.42,10.33]
[1726026837199,2.7297,133.46,133.42,10.33]
[1726026837994,2.7297,133.46,133.41,14.08131204]
[1726026839609,2.7297,133.46,133.41,3.75131204]
[1726026840001,10.33,133.45,133.32,7.5003]
[1726026840304,2.7297,133.46,133.4,10.33]
[1726026840510,13.0597,133.46,133.4,10.33]
[1726026843603,13.0597,133.46,133.4,14.0778]
[1726026843804,2.7297,133.46,133.42,10.33]
[1726026844004,2.7297,133.46,133.32,7.5003]
[1726026844005,2.7297,133.46,133.41,10.33]
[1726026845608,2.7297,133.46,133.41,14.0776]
[1726026846117,2.7297,133.46,133.42,10.33]
[1726026848404,10.33,133.48,133.42,10.33]
[1726026848610,2.7272,133.5,133.42,10.33]
[1726026848910,10.33,133.48,133.42,10.33]
[1726026849807,10.33,133.47,133.41,10.33]
[1726026850109,10.33,133.45,133.33,5.93905426]
[1726026850306,10.33,133.45,133.39,14.078]
[1726026850607,10.33,133.45,133.39,17.86454588]
[1726026851205,10.33,133.45,133.38,3.7483]
[1726026851505,10.33,133.44,133.37,14.01421693]
[1726026851700,13.0561,133.44,133.37,14.0786]
[1726026852106,13.0561,133.44,133.37,17.858594]
[1726026852310,13.0561,133.44,133.37,14.109994]
[1726026852506,10.33,133.43,133.29,5.93906277]
[1726026852708,11.6921,133.43,133.36,10.33]
[1726026852909,11.6921,133.43,133.37,3.71363227]
[1726026854215,11.6921,133.43,133.36,10.33]
[1726026854406,11.6921,133.43,133.37,3.75937312]
[1726026855214,2.7261,133.44,133.37,14.08937312]
[1726026855508,13.0561,133.44,133.37,14.08937312]
[1726026856515,13.0561,133.44,133.37,10.33]
[1726026856710,13.0561,133.44,133.37,14.05431378]
[1726026857114,13.0561,133.44,133.37,17.80301378]
[1726026858212,13.0561,133.44,133.38,3.7484]
[1726026858809,2.7261,133.44,133.39,14.0781]
[1726026859613,1.3621,133.47,133.4,3.7479]
[1726026859811,2.6409,133.46,133.4,10.33]
[1726026860214,2.6409,133.46,133.42,14.0773]
[1726026860615,2.6409,133.46,133.42,10.33]
[1726026861812,2.6409,133.46,133.41,14.0775]
[1726026864017,2.6409,133.46,133.41,10.33]
[1726026864817,2.6409,133.46,133.41,14.0776]
[1726026865824,118.52164426,133.48,133.42,14.0772]
[1726026866018,128.85164426,133.48,133.42,14.0772]
[1726026867126,10.33,133.48,133.43,3.747]
[1726026867323,10.33,133.48,133.42,10.33]
[1726026868026,10.33,133.48,133.42,14.0773]
[1726026872524,7.90446095,133.52,133.43,14.0769]
[1726026872720,10.33,133.5,133.43,14.0769]
[1726026873430,10.33,133.5,133.43,10.33]
[1726026877132,10.33,133.5,133.43,14.077]
[1726026878531,224.0,133.58,133.47,10.33]
[1726026878831,10.33,133.55,133.48,10.33]
[1726026879227,10.33,133.55,133.48,14.0755]
[1726026879636,10.33,133.55,133.48,17.80826011]
[1726026879933,10.33,133.55,133.48,14.0755]
[1726026882535,10.33,133.55,133.49,14.0753]
[1726026883332,10.33,133.55,133.49,10.33]
[1726026884134,6.51305288,133.56,133.49,14.0754]
[1726026884331,10.33,133.55,133.49,14.0754]
[1726026884726,10.33,133.55,133.49,10.33]
[1726026885742,10.33,133.55,133.49,14.0753]
[1726026890342,2.8099,133.56,133.51,10.33]
[1726026895346,2.8099,133.56,133.52,10.33]
[1726026896142,10.33,133.59,133.52,10.33]
[1726026896344,12.9447,133.59,133.52,10.33]
[1726026896739,10.33,133.58,133.52,10.33]
[1726026899041,2.6147,133.59,133.54,10.33]
[1726026903447,2.6147,133.59,133.55,10.33]
[1726026916662,12.9447,133.59,133.52,10.33]
[1726026919467,12.9447,133.59,133.48,259.20339]
[1726026919468,10.33,133.57,133.48,262.94899]
[1726026919665,11.7172,133.56,133.5,10.33]
[1726026920163,11.7172,133.56,133.48,259.20339]
[1726026920364,11.7172,133.56,133.5,10.33]
[1726026923571,1.3872,133.56,133.51,10.33]
[1726026923772,1.3872,133.56,133.52,10.33]
[1726026924068,2.6147,133.59,133.53,10.33]
[1726026934681,2.6147,133.59,133.55,10.33]
[1726026934882,1.3405,133.61,133.55,10.33]
[1726026942694,1.3405,133.61,133.56,10.33]
[1726026943991,128.72956054,133.62,133.56,10.33]
[1726026946791,118.39956054,133.62,133.56,10.33]
[1726026946992,128.72956054,133.62,133.56,10.33]
[1726026947392,118.39956054,133.62,133.58,10.33]
[1726026947595,118.39956054,133.62,133.59,10.33]
[1726026956406,118.39956054,133.62,133.59,10.29297569]
[1726026957602,118.39956054,133.62,133.56,3.7432]
[1726026957798,118.39956054,133.62,133.58,10.33]
[1726026959395,1.3701,133.66,133.6,10.33]
[1726026959602,1.3701,133.66,133.54,3.77415438]
[1726026959796,10.33,133.64,133.57,10.33]
[1726026959999,10.33,133.63,133.55,3.68034751]
[1726026960203,10.33,133.63,133.57,10.33]
[1726026960399,10.33,133.6,133.49,5.92987153]
[1726026960604,10.33,133.59,133.53,10.33]
[1726026961008,10.33,133.59,133.48,259.20339]
[1726026961207,10.33,133.59,133.53,10.33]
[1726026961509,10.33,133.59,133.48,259.20339]
[1726026961705,10.33,133.59,133.52,10.33]
[1726026962312,5.07951851,133.61,133.48,259.20339]
[1726026962313,10.33,133.6,133.54,10.33]
[1726026962705,10.33,133.6,133.55,10.33]
[1726026962899,1.3606,133.61,133.55,10.33]
[1726026963505,1.3606,133.61,133.54,7.56580913]
[1726026963808,1.3606,133.61,133.55,10.33]
[1726026965213,10.33,133.6,133.54,10.33]
[1726026973715,10.33,133.6,133.53,10.33]
[1726026974518,10.25312458,133.6,133.53,10.33]
[1726026974713,1.3606,133.61,133.53,10.33]
[1726026974912,11.6906,133.61,133.53,14.0742]
[1726026976115,1.3606,133.61,133.53,14.0742]
[1726026976323,1.3606,133.61,133.55,10.33]
[1726026979230,10.33,133.59,133.48,259.20339]
[1726026979420,10.33,133.56,133.48,259.20339]
[1726026979624,10.33,133.56,133.5,14.0751]
[1726026980331,10.33,133.58,133.52,10.33]
[1726026980529,11.6906,133.61,133.54,10.33]
[1726026981527,10.33,133.6,133.54,10.33]
[1726026981730,10.33,133.6,133.48,259.20339]
[1726026981731,10.33,133.59,133.52,10.33]
[1726026981933,10.33,133.59,133.48,259.20339]
[1726026981934,10.33,133.57,133.51,10.33]
[1726026984126,10.33,133.59,133.52,10.33]
[1726026984333,1.3606,133.61,133.54,10.33]
[1726026984528,1.3606,133.61,133.56,10.33]
[1726026985231,11.6906,133.61,133.54,10.33]
[1726026985628,1.3606,133.61,133.54,10.33]
[1726026985835,11.6906,133.61,133.54,10.33]
[1726026986441,1.3606,133.61,133.54,14.0739]
[1726026989830,1.3606,133.61,133.54,3.7439]
[1726026990135,1.3606,133.61,133.55,10.33]
[1726026990733,1.3606,133.61,133.53,3.7441]
[1726026991036,11.6906,133.61,133.54,10.33]
[1726026991231,1.3606,133.61,133.54,10.33]
[1726026992031,1.3606,133.61,133.55,10.33]
[1726026994743,1.3606,133.61,133.52,3.7444]
[1726026994944,1.3606,133.61,133.54,10.33]
[1726027000346,1.3606,133.61,133.56,10.33]
[1726027002150,1.3606,133.61,133.5,5.93207418]
[1726027002453,1.3606,133.61,133.55,10.33]
[1726027004451,1.3606,133.61,133.53,3.7442]
[1726027004648,1.3606,133.61,133.55,10.33]
[1726027008662,1.3606,133.61,133.57,10.33]
[1726027008960,10.33,133.66,133.59,10.33]
[1726027009153,1.3849,133.65,133.59,10.33]
[1726027011854,2.7062,133.66,133.58,3.7428]
[1726027012069,2.7062,133.66,133.62,10.33]
[1726027012353,10.33,133.68,133.62,10.33]
[1726027013658,10.33,133.67,133.58,7.51498602]
[1726027013862,10.33,133.67,133.61,10.33]
[1726027022256,10.33,133.67,133.58,3.7427]
[1726027022459,10.33,133.66,133.59,10.33]
[1726027022660,1.3124,133.65,133.59,10.33]
[1726027023864,1.3124,133.65,133.61,10.33]
[1726027027476,1.3124,133.65,133.45,3.7464]
[1726027027776,10.33,133.62,133.49,10.33]
[1726027027962,10.33,133.58,133.52,10.33]
[1726027028167,3.78472482,133.57,133.52,10.33]
[1726027028464,10.33,133.56,133.48,259.20339]
[1726027028772,10.33,133.56,133.48,269.53339]
[1726027028974,3.7454,133.49,133.48,269.53339]
[1726027034876,10.33,133.54,133.48,269.53339]
[1726027037381,11.6182,133.55,133.48,269.53339]
[1726027038580,10.33,133.54,133.48,269.53339]
[1726027040278,10.33,133.54,133.48,259.20339]
[1726027040578,10.33,133.53,133.48,259.20339]
[1726027046878,1.3073,133.54,133.48,259.20339]
[1726027047086,10.33,133.53,133.48,259.20339]
[1726027050186,1.3073,133.54,133.48,259.20339]
[1726027050392,10.33,133.53,133.48,259.20339]
[1726027058197,10.33,133.51,133.48,259.20339]
[1726027061391,10.33,133.51,133.48,265.20339]
[1726027064606,10.33,133.53,133.48,265.20339]
[1726027066207,4.9732845,133.55,133.48,265.20339]
[1726027066407,10.33,133.53,133.48,265.20339]
[1726027067102,10.33,133.53,133.48,275.53339]
[1726027071001,118.42882521,133.59,133.52,10.33]
[1726027071002,128.75882521,133.59,133.52,10.33]
[1726027071195,128.75882521,133.59,133.48,265.20339]
[1726027071196,128.75882521,133.59,133.54,10.33]
[1726027071600,118.42882521,133.59,133.54,10.33]
[1726027072102,10.33,133.61,133.56,6.0]
[1726027073608,10.33,133.63,133.56,16.33]
[1726027073915,10.33,133.63,133.6,6.0]
[1726027079511,10.33,133.61,133.6,6.0]
[1726027084018,10.33,133.63,133.6,6.0]
[1726027084413,10.33,133.62,133.6,6.0]
[1726027087612,10.33,133.63,133.6,6.0]
[1726027091313,10.33,133.63,133.57,10.33]
[1726027095811,1.377,133.66,133.57,10.33]
[1726027096118,10.33,133.63,133.57,10.33]
[1726027097416,10.33,133.63,133.61,6.0]
[1726027103331,10.33,133.63,133.62,6.0]
[1726027104334,1.377,133.66,133.62,6.0]
[1726027104632,10.33,133.65,133.62,6.0]
[1726027104829,10.33,133.64,133.62,6.0]
[1726027121740,1.377,133.66,133.62,6.0]
[1726027121938,11.707,133.66,133.62,6.0]
[1726027125639,10.33,133.65,133.62,6.0]
[1726027128041,1.377,133.66,133.62,6.0]
[1726027128346,1.377,133.66,133.59,10.33]
[1726027128546,1.377,133.66,133.59,14.0724]
[1726027129446,10.33,133.64,133.58,10.33]
[1726027130142,1.377,133.66,133.58,10.33]
[1726027130449,10.33,133.65,133.58,10.33]
[1726027131553,10.33,133.65,133.59,10.33]
[1726027133251,10.33,133.65,133.59,16.33]
[1726027136853,1.377,133.66,133.59,16.33]
[1726027137552,1.377,133.66,133.6,10.33]
[1726027139153,1.377,133.66,133.6,16.33]
[1726027145254,1.377,133.66,133.6,10.33]
[1726027146359,3.70194558,133.67,133.6,10.33]
[1726027146553,14.03194558,133.67,133.6,10.33]
[1726027147254,3.70194558,133.67,133.6,10.33]
[1726027147458,10.33,133.67,133.6,10.33]
[1726027151061,1.3726,133.68,133.6,10.33]
[1726027151255,10.33,133.67,133.6,16.33]
[1726027152050,10.33,133.67,133.6,20.0723]
[1726027154854,10.33,133.67,133.6,6.0]